[Event "III GM Brena Baja-La Palma 2022"]
[Site "La Palma"]
[Date "2022.04.11"]
[Round "5.3"]
[White "Zwirs, Nico"]
[Black "Herrera Reyes, Jose Antonio"]
[Result "1-0"]
[ECO "B42"]
[WhiteElo "2461"]
[BlackElo "2319"]
[Annotator "TA"]
[PlyCount "69"]
[EventDate "2022.04.01"]
[EventType "tourn"]
[EventCountry "ESP"]
[SourceTitle "playchess.com"]
[Source "ChessBase"]
[SourceQuality "1"]
[TimeControl "5400+30"]

{[%evp 13,69,31,40,29,47,30,27,26,25,-5,-11,-32,37,23,39,39,33,20,115,125,117,102,104,106,112,26,95,98,105,87,181,186,235,232,245,233,220,233,218,217,344,352,392,379,472,427,447,444,472,467,445,414,698,547,630,622,29988,29989]} 1. e4 {[%emt 0:00:03]} c5 {[%emt 0:00:11]} 2. Nf3 {[%emt 0:00:07][%cal Bg1f3,Bf3d4,Bd4b3][%mdl 32]} e6 {[%emt 0:00:04]} 3. d4 {[%emt 0:00:10]} cxd4 {[%emt 0:00:05]} 4. Nxd4 {[%emt 0:00:05]} a6 {[%emt 0:00:05]} 5. Bd3 {[%emt 0:00:18]} Bc5 {[%emt 0:07:16]} 6. Nb3 {[%emt 0:00:16]} Ba7 {[%emt 0:00:01]} 7. Qe2 $1 {[%emt 0:01:36] 7.Qe2 is better than 7.0-0.} d6 {[%emt 0:06:04]} 8. Be3 {[%emt 0:00:39] B42: Sicilian: Kan Variation: 5 Bd3.} e5 {[%emt 0:00:37]} 9. Nc3 {[%emt 0:06:55] [#]} Nf6 $146 {[%emt 0:03:14]} ({Predecessor:} 9... Ne7 10. O-O-O O-O 11. Bxa7 Rxa7 12. Qe3 Nbc6 13. Be2 Be6 14. Nc5 Bxa2 15. Nxa2 Qa5 16. Rxd6 Qxa2 {1-0 (38) Aitbayev,A (2346)-Neverov,V (2500) St Petersburg 2011}) 10. O-O-O {[%emt 0:02:27] White has an edge.} O-O {[%emt 0:03:57]} 11. Rhg1 {[%emt 0:29:33]} b5 {[%emt 0:07:15]} 12. g4 {[%emt 0:16:06][%cal Bg2g4,Bg4g5][%mdl 32]} Be6 {[%emt 0:08:31]} ({Better is} 12... Bxe3+ $15 13. fxe3 b4) 13. g5 {[%emt 0:00:34]} Nfd7 {[%emt 0:00:08]} 14. Nd5 {[%emt 0:03:23]} Nc6 {[%emt 0:04:51][%cal Bb8c6,Bc6e7,Be7f5][%mdl 32]} 15. Kb1 {[%emt 0:02:46]} g6 {[%emt 0:18:01]} (15... Ne7 $11 {keeps the balance.}) 16. h4 $16 {[%emt 0:01:40] 0x0.00059bf61f76dp-1022s more active pieces. The black rooks are badly placed.} Bxe3 {[%emt 0:10:19]} 17. Qxe3 {[%emt 0:01:58][%cal Oh4h5]} Bxd5 {[%emt 0:00:56]} 18. exd5 {[%emt 0:00:02]} Ne7 {[%emt 0:00:19]} 19. Be2 {[%emt 0:06:26]} (19. h5 $16) 19... a5 {[%emt 0:05:27]} (19... Nb6 $11) 20. Bxb5 {[%emt 0:05:13] White leaves nothing to chance now.} Nf5 {[%emt 0:01:30]} 21. Qe4 {[%emt 0:02:19]} a4 {[%emt 0:01:05]} (21... Qc7 $16 {might work better.}) 22. Bxa4 $18 {[%emt 0:00:13]} Ra7 {[%emt 0:02:48]} (22... h5 {was worth a try.} 23. Rge1 Qc7) 23. f4 {[%emt 0:05:31]} exf4 {[%emt 0:01:29]} 24. Qxf4 {[%emt 0:00:54]} Ne5 {[%emt 0:00:20]} 25. Bb5 {[%emt 0:01:22]} Qb6 {[%emt 0:00:06]} 26. a4 {[%emt 0:00:52]} Rfa8 {[%emt 0:00:27]} (26... Ne3 $142 27. Rde1 Nxd5) 27. Rge1 {[%emt 0:00:30]} Qc7 {[%emt 0:02:37]} 28. h5 {[%emt 0:00:59][%cal Bh4h5,Bh5h6][%mdl 32]} Rc8 {[%emt 0:02:11]} 29. Re2 {[%emt 0:00:43]} Rca8 {[%emt 0:01:05]} 30. h6 {[%emt 0:00:54] Inhibits Ng7.} Qb6 {[%emt 0:00:01]} 31. Rde1 {[%emt 0:02:58]} f6 {[%emt 0:01:20]} 32. gxf6 {[%emt 0:00:19]} Kf7 {[%emt 0:00:01]} (32... Rf8 $142 33. c3 (33. Qg5 Nf3 $16) 33... Raf7) 33. Rxe5 {[%emt 0:04:36]} dxe5 {[%emt 0:00:02]} 34. Qxe5 {[%emt 0:00:05]} Qxf6 {[%emt 0:00:08]} 35. Be8+ {[%emt 0:00:07] Weighted Error Value: White=0.17 (very precise) /Black=0.61} 1-0

[Event "III GM Brena Baja-La Palma 2022"]
[Site "La Palma"]
[Date "2022.04.12"]
[Round "6.1"]
[White "Strikovic, Aleksa"]
[Black "Herrera Reyes, Jose Antonio"]
[Result "1-0"]
[ECO "B42"]
[WhiteElo "2486"]
[BlackElo "2319"]
[Annotator "TA"]
[PlyCount "69"]
[EventDate "2022.04.01"]
[EventType "tourn"]
[EventCountry "ESP"]
[SourceTitle "playchess.com"]
[Source "ChessBase"]
[SourceQuality "1"]
[TimeControl "5400+30"]

{[%evp 16,69,64,72,71,59,105,100,94,112,123,83,123,84,162,91,134,86,137,144,267,245,319,302,312,301,430,428,547,592,553,392,428,238,565,383,700,708,691,683,858,881,2308,2262,1724,1340,29998,660,660,0,29992,29991,29991,493,29998,29999]} 1. c4 {[%emt 0:00:04]} Nf6 {[%emt 0:01:28]} 2. Nc3 {[%emt 0:00:34]} c5 {[%emt 0:02:43]} 3. Nf3 {[%emt 0:00:16]} e6 {[%emt 0:00:24]} 4. d4 {[%emt 0:01:00]} cxd4 {[%emt 0:00:07]} 5. Nxd4 {[%emt 0:00:06]} a6 {[%emt 0:00:37]} 6. e4 {[%emt 0:01:49]} Qc7 {[%emt 0:00:25]} 7. Bd3 {[%emt 0:03:32]} d6 {[%emt 0:05:10]} 8. O-O {[%emt 0:00:51]} Nbd7 {[%emt 0:00:10]} 9. Be3 {[%emt 0:00:49]} b6 {[%emt 0:03:57] B42: Sicilian: Kan Variation: 5 Bd3.} 10. Rc1 {[%emt 0:04:55] &Bianco is much more active. The black rooks are badly placed.} Ne5 {[%emt 0:06:21]} (10... Bb7 $14) 11. Be2 $16 {[%emt 0:03:19]} Be7 {[%emt 0:16:53] White is better.} 12. f4 {[%emt 0:06:52][%cal Bf2f4,Bf4f5,Bf5e6][%mdl 32] [#]} Ng6 $146 {[%emt 0:00:34]} ({Predecessor:} 12... Ned7 13. Bf3 Bb7 14. Qe2 Rc8 15. b3 Qb8 16. Bf2 O-O 17. g4 g6 {½-½ (38) Mainka,R (2461)-Cramling,P (2477) Germany 2005}) 13. g3 {[%emt 0:02:17]} h5 {[%emt 0:06:47]} 14. h3 {[%emt 0:13:22]} Bb7 {[%emt 0:06:34]} (14... Qd7 $16 {is a better defense.}) 15. Bf3 {[%emt 0:01:51]} (15. f5 $18 Nf8 16. fxe6 fxe6 17. b4) 15... Rc8 {[%emt 0:00:20]} 16. Bg2 {[%emt 0:07:59]} (16. f5 $142 Nf8 17. fxe6 fxe6 18. b3) 16... Qb8 {[%emt 0:02:24]} (16... Qxc4 $2 17. Na4 (17. Nd5 Qxa2 18. Rxc8+ Bxc8 $16) 17... Qb4 18. Rxc8+ Bxc8 19. a3 $18) ({Better is} 16... Qd7) 17. f5 {[%emt 0:01:30]} Ne5 {[%emt 0:10:02]} (17... Nf8 $16 {was necessary.}) 18. fxe6 $18 {[%emt 0:01:19]} Rxc4 {[%emt 0:08:13]} 19. Nd5 {[%emt 0:02:53]} Rxc1 {[%emt 0:11:55]} 20. Qxc1 {[%emt 0:02:07] The board is on fire.} (20. Bxc1 $6 Nxd5 21. exf7+ (21. exd5 O-O $18) 21... Nxf7 $18) 20... Bxd5 {[%emt 0:01:29]} (20... Bd8 {was called for.} 21. Qd1 b5 22. Nxf6+ (22. exf7+ Kxf7 23. Nxf6 Bxf6 $16) 22... Bxf6) 21. exd5 {[%emt 0:00:08]} O-O {[%emt 0:00:17]} 22. Nf5 {[%emt 0:00:21]} Qd8 {[%emt 0:02:25]} 23. Bd4 {[%emt 0:08:58] A strong pair of Bishops.} Ne8 {[%emt 0:04:29] [#]} 24. Qd1 {[%emt 0:04:19]} (24. Qc8 $142 $3 {[%mdl 512]} Ng6 25. exf7+ Rxf7 26. Qe6) 24... h4 $2 {[%emt 0:04:12]} (24... fxe6 25. dxe6 Rf6) 25. gxh4 {[%emt 0:02:54]} Bxh4 $2 {[%emt 0:04:23]} (25... fxe6 26. dxe6 b5) 26. Bxe5 {[%emt 0:04:45]} dxe5 {[%emt 0:00:04]} 27. Qg4 {[%emt 0:00:08]} Bg5 {[%emt 0:00:52]} 28. e7 {[%emt 0:02:28]} Bxe7 {[%emt 0:00:17]} 29. Nh6+ {[%emt 0:00:16][%mdl 64] Deflection} Kh7 {[%emt 0:00:35]} 30. Nxf7 {[%emt 0:00:13] Intending Qh5+ and mate.} Qc7 {[%emt 0:00:47]} 31. Kh1 {[%emt 0:07:29]} (31. Qh5+ $142 Kg8 32. Qh8#) 31... Nf6 {[%emt 0:00:34]} 32. Ng5+ $2 $40 {[%emt 0:00:11][%mdl 128] Black needs to defend precisely.} (32. Qh4+ $18 Kg8 {[#]} 33. d6 $1 Bxd6 34. Ng5) 32... Kg6 $2 {[%emt 0:00:29][%mdl 8192]} (32... Kh6 $11 33. Rxf6+ gxf6 34. Qh4+ Kg6) 33. Qf5+ {[%emt 0:00:19]} Kh6 {[%emt 0:00:27]} 34. Ne6 {[%emt 0:00:21]} (34. Be4 $142 Nxe4 35. Qh7+ Kxg5 36. Rg1+ Ng3+ 37. Rxg3+ Kf4 38. Rg4+ Ke3 39. Qe4+ Kd2 40. Rg2+ Rf2 41. Rxf2+ Kd1 42. Qe2+ Kc1 43. Rf1#) 34... Qc4 {[%emt 0:00:27]} (34... Nh5 $18 35. Qxf8 (35. Nxc7 Rxf5 36. Rxf5 Ng3+ 37. Kg1 Nxf5 $11) 35... Ng3+ 36. Kg1 Bxf8 37. Nxc7 Bc5+ 38. Rf2 e4) 35. Qg5+ {[%emt 0:00:08] Weighted Error Value: White=1.03/Black=1.34} 1-0

[Event "III GM Brena Baja-La Palma 2022"]
[Site "La Palma"]
[Date "2022.04.12"]
[Round "6.2"]
[White "Zwirs, Nico"]
[Black "Kurajica, Bojan"]
[Result "0-1"]
[ECO "B28"]
[WhiteElo "2461"]
[BlackElo "2519"]
[Annotator "TA"]
[PlyCount "180"]
[EventDate "2022.04.01"]
[EventType "tourn"]
[EventCountry "ESP"]
[SourceTitle "playchess.com"]
[Source "ChessBase"]
[SourceQuality "1"]
[TimeControl "5400+30"]

{[%evp 37,180,0,0,0,41,58,57,56,79,46,60,49,45,0,41,45,45,26,39,39,24,0,0,-43,45,42,54,-149,-181,-173,-152,-149,-141,-141,-143,-154,-147,-190,-190,-180,-111,-382,-310,-376,-376,-370,-374,-332,-347,-410,-402,-384,-291,-346,-341,-333,-326,-295,-273,-996,-933,-1248,-945,-868,-165,-165,-165,-165,-165,-165,-165,-165,-165,-616,-165,-165,-165,-165,-165,-165,-165,-165,-165,-165,-165,-165,-131,-131,-131,-164,0,-131,-131,-131,-131,-131,-90,-131,-90,-90,-90,-90,-90,-90,-90,-90,-90,-90,-90,-90,-90,-126,-126,-29967,-29967,-29965,-29965,-29964,-29955,-29968,-29970,-29977,-29978,-29981,-29982,-29982,-29983,-29984,-29984,-29985,-29986,-29986,-29987,-29987,-29988,-29988,-29989,-29989,-29990,-29991,-29992,-29993,-29994,-29998,-5306]} 1. e4 {[%emt 0:00:04]} c5 {[%emt 0:00:05]} 2. Nf3 {[%emt 0:00:07]} a6 {[%emt 0:01:20]} 3. c3 {[%emt 0:00:13]} d6 {[%emt 0:01:00]} 4. d4 {[%emt 0:00:46]} Nd7 {[%emt 0:00:09]} 5. Bd3 {[%emt 0:01:15]} e6 {[%emt 0:07:32]} 6. O-O {[%emt 0:00:29]} Ne7 {[%emt 0:00:23]} 7. Nbd2 {[%emt 0:05:06]} Ng6 {[%emt 0:00:21]} 8. Re1 {[%emt 0:02:14]} Be7 {[%emt 0:00:53]} 9. Nf1 {[%emt 0:03:45]} O-O {[%emt 0:01:12]} 10. Ng3 {[%emt 0:10:47]} b5 {[%emt 0:04:07]} 11. a4 {[%emt 0:01:04]} c4 {[%emt 0:07:01]} 12. Bf1 {[%emt 0:05:07]} Bb7 {[%emt 0:00:25]} 13. b3 {[%emt 0:00:25]} d5 {[%emt 0:06:47]} 14. e5 {[%emt 0:11:54]} Qc7 {[%emt 0:06:23]} 15. Bd2 {[%emt 0:05:56]} Bc6 {[%emt 0:06:33]} 16. a5 {[%emt 0:14:08]} Rae8 {[%emt 0:00:38]} 17. b4 {[%emt 0:10:55]} f6 {[%emt 0:03:42]} 18. exf6 {[%emt 0:00:16]} Bxf6 {[%emt 0:00:07]} 19. Ng5 {[%emt 0:00:51]} Bxg5 {[%emt 0:21:30]} 20. Bxg5 {[%emt 0:00:04]} h6 {[%emt 0:00:24]} 21. Be3 {[%emt 0:00:34]} Nf6 {[%emt 0:01:24]} 22. Ra2 {[%emt 0:02:45]} Re7 {[%emt 0:03:30]} 23. Rc2 {[%emt 0:02:46]} Be8 {[%emt 0:01:45]} 24. Nh5 {[%emt 0:06:27]} Ne4 {[%emt 0:02:59]} 25. Ng3 {[%emt 0:00:49]} Nd6 {[%emt 0:02:34]} 26. Rce2 {[%emt 0:02:07]} Nh4 {[%emt 0:03:21]} 27. Qc1 {[%emt 0:01:20]} Ne4 {[%emt 0:02:17]} 28. Nxe4 {[%emt 0:08:10]} dxe4 {[%emt 0:00:06]} 29. Rd2 {[%emt 0:00:52]} (29. Bd2 $5 {[%cal Re2e4]}) 29... Rf5 {[%emt 0:04:16]} 30. Qd1 {[%emt 0:01:11]} Qc6 {[%emt 0:06:16]} (30... Bh5 $15 31. Be2 Bxe2 32. Rdxe2 Qc6) 31. Qg4 $14 {[%emt 0:00:38]} g5 {[%emt 0:00:29]} 32. f3 $2 {[%emt 0:02:45]} (32. Be2 $14) 32... exf3 $17 {[%emt 0:00:43]} 33. Bf2 {[%emt 0:00:05]} fxg2 {[%emt 0:01:41]} 34. Bxg2 {[%emt 0:00:28]} Qxg2+ {[%emt 0:00:14]} 35. Qxg2 {[%emt 0:00:02]} Nxg2 {[%emt 0:00:05]} 36. Kxg2 {[%emt 0:00:01]} Bc6+ {[%emt 0:00:07]} 37. Kg1 {[%emt 0:00:02]} Bd5 $1 {[%emt 0:00:17]} 38. Re5 {[%emt 0:00:28]} Rf3 {[%emt 0:00:37]} (38... Ref7 $1 $19 {Threatens to win with ...Rf3.} 39. Rde2 Rf3) 39. Be3 $2 {[%emt 0:01:11][%mdl 8192]} (39. Be1 $17 {is a better defense.}) 39... Kh7 {[%emt 0:01:07]} 40. Rf2 {[%emt 0:00:27]} Ref7 {[%emt 0:00:11]} 41. Rxf3 {[%emt 0:01:22]} Rxf3 {[%emt 0:00:07]} 42. Bd2 {[%emt 0:00:02]} Rd3 $1 {[%emt 0:00:20]} 43. Re2 {[%emt 0:00:23]} Kg6 {[%emt 0:02:06]} 44. Kf2 {[%emt 0:01:30]} Kh5 {[%emt 0:01:20]} 45. Be1 {[%emt 0:00:11]} Rf3+ {[%emt 0:00:37]} 46. Kg1 {[%emt 0:00:05]} Kg4 {[%emt 0:00:23]} 47. Rg2+ {[%emt 0:01:01]} Kf4 {[%emt 0:01:36]} 48. Rg3 $2 {[%emt 0:00:43]} (48. Re2) 48... Ke3 {[%emt 0:00:34]} 49. Rxf3+ {[%emt 0:00:09]} Bxf3 {[%emt 0:00:05]} 50. d5 {[%emt 0:00:07]} Bxd5 $2 {[%emt 0:00:42]} (50... e5 51. Bg3 e4) 51. Bg3 {[%emt 0:00:13]} h5 {[%emt 0:01:10]} 52. Bd6 {[%emt 0:00:37]} g4 {[%emt 0:00:57]} 53. Bg3 {[%emt 0:00:33]} Kd3 {[%emt 0:00:19]} 54. Be5 {[%emt 0:00:08]} Ke4 {[%emt 0:00:34]} 55. Bf6 $2 {[%emt 0:00:07]} (55. Bd6) 55... Kf3 $2 {[%emt 0:00:20]} (55... e5 {[%cal Oh5h4] Hoping for ...h4!} 56. Kf2 h4) 56. Be5 {[%emt 0:00:41]} Be4 {[%emt 0:00:32]} 57. Bg3 {[%emt 0:00:41]} Ke3 {[%emt 0:00:41]} 58. Be5 {[%emt 0:00:30]} Bf3 {[%emt 0:00:44]} 59. Bf6 {[%emt 0:00:41]} Ke2 {[%emt 0:00:19]} 60. Be5 {[%emt 0:00:10]} h4 {[%emt 0:00:44]} 61. Bf6 {[%emt 0:00:12]} Kd3 {[%emt 0:00:51]} 62. Kf2 {[%emt 0:00:33]} Bd1 {[%emt 0:00:53]} 63. Kg2 {[%emt 0:01:02]} Bf3+ {[%emt 0:00:15]} 64. Kf2 {[%emt 0:00:01]} Be4 {[%emt 0:00:08]} 65. Be5 {[%emt 0:00:46]} Kd2 {[%emt 0:00:30]} 66. Bf6 {[%emt 0:01:17]} g3+ {[%emt 0:00:28]} 67. Kg1 {[%emt 0:00:58]} gxh2+ {[%emt 0:01:06]} 68. Kxh2 {[%emt 0:00:01]} Bf5 {[%emt 0:00:09]} 69. Kg2 {[%emt 0:00:19]} h3+ {[%emt 0:00:05]} 70. Kf2 {[%emt 0:01:09]} Kd3 {[%emt 0:00:27]} 71. Be5 {[%emt 0:00:11]} Be4 {[%emt 0:00:41]} 72. Kg3 {[%emt 0:00:18] [#]} Bg2 $1 {[%emt 0:00:07]} 73. Kf2 {[%emt 0:00:07]} Ke4 {[%emt 0:00:15]} 74. Bh2 {[%emt 0:00:17]} Bf3 {[%emt 0:01:24]} 75. Bg3 $2 {[%emt 0:00:21][%mdl 8192] [#]} (75. Kg1 $17) 75... Kd3 $1 {[%emt 0:00:48]} 76. Be5 {[%emt 0:00:39]} h2 $1 {[%emt 0:00:07]} 77. Bxh2 {[%emt 0:00:08]} Kxc3 {[%emt 0:00:05]} 78. Kxf3 {[%emt 0:00:08]} Kxb4 {[%emt 0:00:12]} 79. Ke3 {[%emt 0:01:24]} Kxa5 {[%emt 0:00:21]} 80. Kd2 {[%emt 0:01:27]} b4 {[%emt 0:00:08]} 81. Kc2 {[%emt 0:00:09]} Kb5 {[%emt 0:00:17]} 82. Kb2 {[%emt 0:00:27]} a5 {[%emt 0:00:11]} 83. Bc7 {[%emt 0:00:21]} a4 {[%emt 0:00:09]} 84. Bd6 {[%emt 0:00:07]} c3+ {[%emt 0:00:16]} 85. Kb1 {[%emt 0:01:21]} Kc4 {[%emt 0:00:15]} 86. Ka2 {[%emt 0:00:04]} b3+ {[%emt 0:01:41]} 87. Ka3 {[%emt 0:00:23]} Kd3 {[%emt 0:00:48]} 88. Bf4 {[%emt 0:00:34]} b2 {[%emt 0:00:21]} 89. Ka2 {[%emt 0:00:04]} Kc2 {[%emt 0:00:14]} 90. Bc1 {[%emt 0:00:03]} Kxc1 {[%emt 0:00:44]} (90... b1=Q+ $142 91. Ka3 Qb3#) 0-1

[Event "III GM Brena Baja-La Palma 2022"]
[Site "La Palma"]
[Date "2022.04.12"]
[Round "6.3"]
[White "Pulvett Marin, Daniel Eduardo"]
[Black "Petkov, Vladimir"]
[Result "1-0"]
[ECO "E92"]
[WhiteElo "2499"]
[BlackElo "2491"]
[Annotator "TA"]
[PlyCount "133"]
[EventDate "2022.04.01"]
[EventType "tourn"]
[EventCountry "ESP"]
[SourceTitle "playchess.com"]
[Source "ChessBase"]
[SourceQuality "1"]
[TimeControl "5400+30"]

{[%evp 17,133,40,76,35,69,72,89,83,69,73,106,100,111,86,88,85,124,127,137,141,138,135,142,136,155,154,155,152,155,155,155,155,177,161,181,140,242,242,242,242,283,278,271,242,304,183,185,0,303,303,303,303,303,231,242,194,196,194,311,314,250,201,450,427,437,435,533,514,511,487,532,526,526,487,512,504,498,325,1414,1364,1027,367,343,560,415,418,896,834,983,933,956,860,1202,1184,1032,562,874,621,29987,1010,29990,29991,29991,29990,29990,29991,29991,29992,29992,29993,29993,29994,29994,29995,29995,29996,29996,29997]} 1. d4 {[%emt 0:30:14]} Nf6 {[%emt 0:00:34]} 2. c4 {[%emt 0:00:05]} g6 {[%emt 0:00:23]} 3. Nc3 {[%emt 0:00:12]} Bg7 {[%emt 0:00:48]} 4. e4 {[%emt 0:00:32]} d6 {[%emt 0:00:20]} 5. Nf3 {[%emt 0:00:10]} O-O {[%emt 0:00:07]} 6. Be2 {[%emt 0:01:04]} e5 {[%emt 0:00:55]} 7. d5 {[%emt 0:00:05]} a5 {[%emt 0:00:38]} 8. Bg5 {[%emt 0:00:04]} Na6 {[%emt 0:00:04]} 9. Nd2 {[%emt 0:00:33]} Qe8 {[%emt 0:00:16]} 10. h4 {[%emt 0:02:28][%cal Bh2h4,Bh4h5][%mdl 32] E92: King's Indian: Classical: 6 Be2 e5: 7 dxe5, 7 Be3 and Petrosian System without 7...Nbd7.} h6 {[%emt 0:02:08]} 11. Be3 {[%emt 0:00:13]} Nd7 {[%emt 0:00:35] [#]} 12. g4 $1 {[%emt 0:10:08] White is better.} Ndc5 {[%emt 0:00:36] [#]} 13. Rg1 $146 {[%emt 0:15:32]} ({Predecessor:} 13. g5 h5 14. Nb3 a4 15. Nxc5 Nxc5 16. Qc2 Bd7 17. Rg1 c6 18. O-O-O Qe7 19. Qd2 {0-1 (44) Cuenca Jimenez,J (2506)-Dominguez Alcon,V (2172) Linares 2018}) 13... c6 {[%emt 0:06:20]} 14. h5 {[%emt 0:03:49]} g5 {[%emt 0:21:02]} 15. Nb3 {[%emt 0:03:42]} Qd8 {[%emt 0:04:27]} 16. f3 {[%emt 0:04:27]} cxd5 {[%emt 0:06:44]} 17. cxd5 {[%emt 0:00:07]} (17. Nxd5 b6) 17... a4 {[%emt 0:06:30]} 18. Nxc5 {[%emt 0:00:12]} Nxc5 {[%emt 0:00:03]} 19. Bb5 {[%emt 0:04:22]} Bd7 {[%emt 0:01:23]} 20. Qe2 {[%emt 0:03:45]} Ra5 {[%emt 0:00:34]} 21. Kf2 {[%emt 0:12:10]} Bxb5 {[%emt 0:08:07]} 22. Nxb5 {[%emt 0:00:06]} Qd7 {[%emt 0:00:06]} 23. Na3 {[%emt 0:01:38]} Rc8 {[%emt 0:13:16]} 24. Rac1 {[%emt 0:09:14][%cal Ba1c1,Bc1c2,Bc2c3][%mdl 32]} Bf6 {[%emt 0:02:08]} 25. Rc2 {[%emt 0:05:31]} Bd8 {[%emt 0:04:05]} 26. Rgc1 {[%emt 0:00:41]} b5 {[%emt 0:04:18] Prevents Nc4.} (26... b6 $16 {was called for.} 27. Kf1 Kh7) 27. Kg3 $18 {[%emt 0:01:07]} (27. Bxc5 Rxc5 28. Kg2 (28. Rxc5 Bb6 $11) 28... Bb6 $14) 27... Bb6 {[%emt 0:00:20]} 28. Bd2 {[%emt 0:01:23]} Rca8 {[%emt 0:00:13]} 29. Bb4 {[%emt 0:02:08]} Kh7 {[%emt 0:00:27]} 30. Rc3 {[%emt 0:01:57]} R8a6 {[%emt 0:02:37]} 31. Nc2 {[%emt 0:01:07]} Ra8 {[%emt 0:00:16]} 32. Na3 $2 {[%emt 0:01:35]} ({White should play} 32. Ne3 $18) 32... Qe8 $2 {[%emt 0:05:50][%mdl 8192]} (32... R8a6 $1 $11 33. Bxa5 Rxa5) 33. Bxa5 {[%emt 0:00:52]} Rxa5 {[%emt 0:02:01]} 34. Nc2 {[%emt 0:00:18][%cal Ba3c2,Bc2b4,Bb4c6][%mdl 32]} Ra8 {[%emt 0:02:20]} 35. Nb4 {[%emt 0:00:02]} Ba5 {[%emt 0:00:54]} 36. Nc6 {[%emt 0:00:34] Rxc5 is the strong threat.} (36. a3 $6 Bxb4 37. axb4 Nb3) 36... Bxc3 {[%emt 0:00:26]} 37. Rxc3 {[%emt 0:03:48]} Rc8 {[%emt 0:01:49]} (37... Rb8 $142 38. Nxb8 Qxb8) 38. Qxb5 {[%emt 0:00:07]} Rc7 {[%emt 0:00:09]} 39. Qc4 {[%emt 0:04:25]} Rb7 $2 {[%emt 0:01:38]} (39... Qa8 40. Kh3 Kg7) 40. b4 {[%emt 0:00:07]} axb3 {[%emt 0:00:07]} 41. axb3 {[%cal Ba2b3,Bb3b4][%mdl 32]} Qa8 {[%emt 0:00:53][%cal Oc5b3]} 42. b4 {[%emt 0:00:03]} Nd7 {[%emt 0:00:13]} 43. Na5 {[%emt 0:00:04]} Qa7 {[%emt 0:00:41]} 44. Kg2 {[%emt 0:00:06] Prevents Qg1+. Active counter play!} (44. Nxb7 Qg1+ 45. Kh3 Qh1+ 46. Kg3 Qg1+ 47. Kh3 Qh1+ 48. Kg3 Qg1+ $11) 44... Nb6 {[%emt 0:01:33]} 45. Qc6 {[%emt 0:03:07]} Rd7 {[%emt 0:00:49]} 46. Rc2 {[%emt 0:00:14]} Na8 {[%emt 0:00:39]} 47. Qc8 {[%emt 0:02:46] Black must now prevent Nc6.} (47. Nc4 Rc7 48. Qxd6 Qa4 $14) 47... Rc7 {[%emt 0:00:34] [#]} (47... Nb6 48. Qc6 Kg7) 48. Rxc7 $1 {[%emt 0:00:20]} Nxc7 {[%emt 0:00:10]} 49. Qd7 $2 {[%emt 0:00:22]} (49. Qf8 {White wants to mate with Nc6.} Ne8 50. Qxe8) 49... Kg8 {[%emt 0:03:20][%cal Oa7e3]} 50. Qd8+ {[%emt 0:00:06]} (50. Qxd6 Qe3 51. Qc5 (51. Qxc7 Qe2+ 52. Kg3 Qe1+ 53. Kh3 Qh1+ 54. Kg3 Qe1+ 55. Kh3 Qh1+ 56. Kg3 Qe1+ $11) 51... Qd2+ 52. Qf2 Qxb4 $18) 50... Kg7 {[%emt 0:00:19][%cal Oa7e3]} 51. Qxd6 {[%emt 0:00:36]} Qe3 {[%emt 0:00:48]} (51... Qd4 $142 52. Qc5 Qd2+ 53. Qf2 (53. Kh3 Na6 $11) 53... Qxb4) 52. Qxe5+ {[%emt 0:00:13]} (52. Qxc7 Qe2+ 53. Kh3 Qxf3+ 54. Kh2 Qf2+ 55. Kh3 Qf3+ 56. Kh2 Qf2+ 57. Kh3 Qf3+ $11) 52... Kh7 {[%emt 0:02:08]} 53. Qb2 {[%emt 0:00:16] Strongly threatening Nc4.} (53. Qxc7 Qe2+ 54. Kh3 (54. Kg3 Qe1+ 55. Kg2 Qe2+ 56. Kh3 Qf1+ 57. Kh2 Qf2+ 58. Kh3 Qf1+ 59. Kh2 Qf2+ 60. Kh3 Qf1+ $11) 54... Qf1+ 55. Kh2 (55. Kg3 Qe1+ 56. Kh3 Qf1+ 57. Kh2 Qf2+ 58. Kh3 Qf1+ $11) 55... Qf2+ 56. Kh3 Qf1+ 57. Kh2 (57. Kg3 Qe1+ 58. Kh3 Qf1+ $11) 57... Qf2+ 58. Kh3 Qf1+ $11) 53... Nb5 {[%emt 0:00:22]} 54. Nc4 {[%emt 0:00:25]} Qd3 {[%emt 0:01:02]} 55. Ne5 {[%emt 0:00:20][%csl LRd3,LRf7]} Qd1 {[%emt 0:00:06]} 56. Nc6 Na3 {[%emt 0:02:36]} 57. Qd4 {[%emt 0:01:05]} ({Worse is} 57. Qxa3 Qe2+ 58. Kh3 Qf1+ 59. Kh2 (59. Kg3 Qe1+ 60. Kg2 Qe2+ 61. Kh3 Qf1+ 62. Kh2 Qf2+ 63. Kh3 Qf1+ $11) 59... Qf2+ 60. Kh3 (60. Kh1 Qf1+ 61. Kh2 Qf2+ 62. Kh3 Qf1+ 63. Kh2 $11) 60... Qf1+ 61. Kh2 (61. Kg3 Qe1+ 62. Kg2 Qe2+ 63. Kh3 Qf1+ $11) 61... Qf2+ 62. Kh3 (62. Kh1 Qf1+ 63. Kh2 $11) 62... Qf1+ $11) 57... Qc1 {[%emt 0:00:09]} 58. Qa7 {[%emt 0:02:44]} (58. Qf6 $142 Qf4 59. Qxf4 gxf4 60. d6 Kg7 61. d7 Nc2 62. d8=Q Ne1+ 63. Kf2) 58... Nc2 {[%emt 0:00:18]} 59. Qxf7+ {[%emt 0:00:05] White mates.} Kh8 {[%emt 0:00:01]} 60. Qf8+ {[%emt 0:00:04]} Kh7 {[%emt 0:00:01]} 61. Qf5+ {[%emt 0:00:31]} Kh8 {[%emt 0:00:54]} 62. Qf6+ {[%emt 0:00:05]} Kh7 {[%emt 0:00:06]} 63. Qg6+ {[%emt 0:00:30]} Kh8 {[%emt 0:00:02]} 64. Qxh6+ {[%emt 0:00:02]} Kg8 {[%emt 0:00:16]} 65. Ne7+ {[%emt 0:00:44]} Kf7 {[%emt 0:00:08]} 66. Qe6+ {[%emt 0:00:09]} Ke8 {[%emt 0:00:54]} 67. Nf5+ {[%emt 0:00:26] Weighted Error Value: White=0.44/Black=0.52} 1-0